bitfinex/quotes_ETHUSD_20251122
["timestamp","ask_amount","ask_price","bid_price","bid_amount"]
[1763840675926,0.4796,2751.0,2750.9,3.85817394]
[1763840676645,0.4796,2751.0,2750.9,3.73617394]
[1763840676824,0.4796,2751.0,2750.9,3.85817394]
[1763840679051,0.4796,2751.0,2750.9,3.73617394]
[1763840679217,0.4796,2751.0,2750.9,3.85817394]
[1763840680616,0.4796,2751.0,2750.9,3.73617394]
[1763840680952,0.9405,2751.0,2750.9,3.85817394]
[1763840682871,0.9405,2751.0,2750.9,3.73617394]
[1763840683072,0.9405,2751.0,2750.9,3.85817394]
[1763840683937,0.9405,2751.0,2750.9,3.73617394]
[1763840684133,0.9405,2751.0,2750.9,3.85817394]
[1763840685590,0.4796,2751.0,2750.9,3.85817394]
[1763840686263,0.002,2751.0,2750.9,3.96417394]
[1763840686744,0.002,2751.0,2750.9,3.85817394]
[1763840688853,0.4544,2751.0,2750.9,6.10009432]
[1763840689052,0.9153,2751.0,2750.9,4.22107394]
[1763840691789,0.9153,2751.0,2750.9,3.75817394]
[1763840692163,0.4544,2751.0,2750.9,6.10009432]
[1763840692660,0.4544,2751.0,2750.9,6.20009432]
[1763840692889,0.4544,2751.0,2750.9,3.85817394]
[1763840693794,0.002,2751.0,2750.9,3.96417394]
[1763840694391,0.002,2751.0,2750.9,3.85817394]
[1763840694921,0.4544,2751.0,2750.9,3.85817394]
[1763840695208,0.9153,2751.0,2750.9,3.75817394]
[1763840696411,0.9153,2751.0,2750.9,3.63617394]
[1763840696709,0.9153,2751.0,2750.9,3.75817394]
[1763840700927,0.9153,2751.0,2750.9,3.63617394]
[1763840701127,0.9153,2751.0,2750.9,3.75817394]
[1763840703729,0.9153,2751.0,2750.9,3.85817394]
[1763840705332,0.002,2751.0,2750.9,3.96417394]
[1763840705698,0.002,2751.0,2750.9,4.00052567]
[1763840706246,0.002,2751.0,2750.9,3.96417394]
[1763840706534,0.002,2751.0,2750.9,4.42707394]
[1763840706703,0.002,2751.0,2750.9,4.53307394]
[1763840707832,0.002,2751.0,2750.9,4.42707394]
[1763840708151,0.002,2751.0,2750.9,6.06881394]
[1763840712138,0.002,2751.0,2750.9,5.96281394]
[1763840712866,0.4551,2751.0,2750.9,5.96281394]
[1763840714243,0.4551,2751.0,2750.9,5.74081394]
[1763840714471,0.9138,2751.0,2750.9,5.39991394]
[1763840716664,0.9138,2751.0,2750.9,5.49991394]
[1763840717062,0.9138,2751.0,2750.9,5.27791394]
[1763840717264,0.9138,2751.0,2750.9,5.39991394]
[1763840719761,0.9138,2751.0,2750.9,3.75817394]
[1763840720358,0.9138,2751.0,2750.9,3.85817394]
[1763840724366,0.4551,2751.0,2750.9,3.85817394]
[1763840724964,0.002,2751.0,2750.9,3.96417394]
[1763840725346,0.002,2751.0,2750.9,3.85817394]
[1763840725549,0.002,2751.0,2750.9,4.00381888]
[1763840725731,0.002,2751.0,2750.9,5.64555888]
[1763840726255,0.4551,2751.0,2750.9,5.64555888]
[1763840726454,0.9138,2751.0,2750.9,5.64555888]
[1763840726660,0.002,2751.0,2750.9,5.85755888]
[1763840727061,0.002,2751.0,2750.9,5.75155888]
[1763840727674,0.002,2751.0,2750.9,5.85755888]
[1763840731583,0.002,2751.0,2750.9,5.75155888]
[1763840733754,0.002,2751.0,2750.9,5.85755888]
[1763840734155,0.002,2751.0,2750.9,5.75155888]
[1763840734557,0.002,2751.0,2750.9,5.64555888]
[1763840734986,0.4551,2751.0,2750.9,5.52355888]
[1763840735190,0.9138,2751.0,2750.9,5.64555888]
[1763840735990,0.002,2751.0,2750.9,5.54555888]
[1763840736176,0.002,2751.0,2750.9,5.75155888]
[1763840737088,0.002,2751.0,2750.9,5.64555888]
[1763840737387,0.9571,2751.0,2750.9,5.64555888]
[1763840738486,0.9571,2751.0,2750.9,4.10981888]
[1763840738487,0.002,2751.0,2750.9,4.10981888]
[1763840738709,0.002,2751.2,2751.0,0.90699264]
[1763840738855,0.002,2751.2,2751.1,2.71500139]
[1763840739473,0.002,2751.2,2751.1,2.8606177]
[1763840740472,0.002,2751.2,2751.1,6.49552737]
[1763840740893,0.002,2751.2,2751.1,6.38952737]
[1763840741209,0.002,2751.2,2751.1,6.49552737]
[1763840743503,0.002,2751.2,2751.1,8.13726737]
[1763840743874,0.9326,2751.2,2751.1,8.03126737]
[1763840744190,0.9326,2751.2,2751.1,8.15326737]
[1763840744584,0.9326,2751.2,2751.1,5.52226598]
[1763840744764,0.9326,2751.2,2751.1,5.64426598]
[1763840744967,0.9326,2751.2,2751.1,5.54426598]
[1763840745305,0.9326,2751.2,2751.1,5.64426598]
[1763840746699,0.9326,2751.2,2751.1,5.42226598]
[1763840746903,0.9326,2751.2,2751.1,5.39864967]
[1763840749596,0.9326,2751.2,2751.1,3.75690967]
[1763840751301,0.4746,2751.2,2751.1,3.85690967]
[1763840751895,0.4746,2751.2,2751.1,6.36591106]
[1763840753308,0.002,2751.2,2751.1,6.36591106]
[1763840753477,0.002,2751.2,2751.1,6.50826015]
[1763840753679,0.002,2751.2,2751.1,6.47191106]
[1763840753912,0.9326,2751.2,2751.1,6.14391106]
[1763840754114,0.9326,2751.2,2751.1,6.36591106]
[1763840754815,0.9326,2751.2,2751.1,6.19836647]
[1763840755518,0.9326,2751.2,2751.1,7.84010647]
[1763840756312,0.002,2751.2,2751.1,7.84010647]
[1763840756507,0.002,2751.2,2751.1,7.94610647]
[1763840759807,0.002,2751.2,2751.1,8.09173179]
[1763840760323,0.002,2751.2,2751.1,5.75027499]
[1763840760522,0.4746,2751.2,2751.1,5.64427499]
[1763840760686,0.9326,2751.2,2751.1,5.52227499]
[1763840760891,0.9326,2751.2,2751.1,5.39864967]
[1763840761346,0.9326,2751.2,2751.1,3.75690967]
[1763840761489,0.9326,2751.2,2751.1,3.85690967]
[1763840762224,0.9326,2751.2,2751.1,6.19836647]
[1763840764302,0.9326,2751.2,2750.9,1.64274]
[1763840764503,0.4726,2751.0,2750.9,5.27791394]
[1763840764719,0.4726,2751.0,2750.9,5.39991394]
[1763840765046,0.9306,2751.0,2750.9,5.39991394]
[1763840765442,0.9306,2751.0,2750.9,1.64274]
[1763840765633,0.9306,2751.0,2750.9,1.76474]
[1763840765835,0.9306,2751.0,2750.9,5.39991394]
[1763840766343,0.9306,2751.0,2750.9,3.75817394]
[1763840766942,0.9306,2751.0,2750.9,0.123]
[1763840767147,0.9306,2751.0,2750.9,0.001]
[1763840767333,1.336104,2751.0,2750.9,0.001]
[1763840767713,1.79475934,2751.0,2750.9,0.001]
[1763840770551,5.04320878,2751.0,2750.9,0.001]
[1763840770724,1.31249664,2750.9,2750.7,0.001]
[1763840770924,4.32045344,2750.8,2750.7,0.001]
[1763840771112,5.34197576,2750.8,2750.7,0.001]
[1763840771317,1.31249664,2750.7,2750.6,0.001]
[1763840771517,2.25289664,2750.7,2750.6,0.001]
[1763840771759,1.345904,2750.7,2750.6,0.001]
[1763840772953,0.9404,2750.7,2750.6,0.001]
[1763840773148,1.345904,2750.7,2750.6,0.001]
[1763840774329,1.59038366,2750.7,2750.6,0.001]
[1763840778964,0.1919,2750.8,2750.6,0.001]
[1763840779665,0.4607,2750.7,2750.6,0.001]
[1763840779968,0.6716,2750.8,2750.6,0.001]
[1763840780144,0.887204,2751.2,2750.8,3.63530609]
[1763840780333,0.4817,2751.2,2750.8,3.73530609]
[1763840780667,0.4797,2751.1,2750.9,0.122]
[1763840780972,0.002,2751.2,2750.9,2.4634568]
[1763840781154,0.002,2751.2,2751.1,2.5474568]
[1763840782278,0.002,2751.2,2751.1,6.18236647]
[1763840784635,0.002,2751.2,2751.1,6.28836647]
[1763840784837,0.002,2751.2,2751.1,6.18236647]
[1763840785034,0.002,2751.2,2751.1,6.28836647]
[1763840789586,0.002,2751.2,2751.1,6.43398225]
[1763840789908,0.002,2751.2,2751.1,7.34097489]
[1763840790977,0.002,2751.2,2751.1,8.98271489]
[1763840792167,0.002,2751.2,2751.1,8.89271489]
[1763840792370,0.002,2751.2,2751.1,8.99871489]
[1763840793274,0.002,2751.2,2751.1,8.09172225]
[1763840794514,0.002,2751.2,2751.1,9.10471489]
[1763840795816,0.002,2751.3,2751.2,0.90699264]
[1763840796117,0.002,2751.3,2751.2,3.56044944]
[1763840796328,0.1928,2753.9,2752.7,0.208]
[1763840796497,0.1928,2753.9,2753.6,8.41452312]
[1763840796819,0.6631,2753.9,2753.6,6.19506632]
[1763840796997,0.4756,2753.7,2753.6,6.19506632]
[1763840797619,0.002,2753.7,2753.6,6.38786632]
[1763840797826,0.4756,2753.7,2753.6,6.38786632]
[1763840797996,0.9459,2753.7,2753.6,3.94640952]
[1763840798342,0.9459,2753.7,2753.6,0.3148]
[1763840798493,0.9459,2753.7,2753.6,3.75360952]
[1763840799411,0.9459,2753.7,2753.6,0.122]
[1763840800189,0.9459,2753.7,2752.7,0.104]
[1763840800488,0.9569,2753.6,2753.2,3.63213714]
[1763840800822,0.4646,2753.3,2753.1,4.57812181]
[1763840801121,0.9569,2753.2,2753.0,3.63238094]
[1763840801322,0.9569,2753.1,2753.0,4.12468094]
[1763840801620,0.9569,2753.1,2753.0,3.63238094]
[1763840801924,0.9569,2753.1,2753.0,3.75438094]
[1763840802625,0.4646,2753.1,2753.0,3.85438094]
[1763840802828,0.4943,2753.4,2753.0,7.48678195]
[1763840803192,0.4943,2753.4,2753.0,3.85438094]
[1763840803193,0.4646,2753.1,2753.0,3.85438094]
[1763840804233,0.4646,2753.1,2753.0,0.222]
[1763840804405,0.9569,2753.1,2752.8,3.63263536]
[1763840804730,0.4923,2753.1,2753.0,0.122]
[1763840804907,0.002,2753.4,2753.0,0.122]
[1763840805107,0.4646,2753.1,2753.0,0.122]
[1763840805698,0.9569,2753.1,2753.0,0.122]
[1763840807329,0.9569,2753.1,2753.0,3.75440101]
[1763840807523,0.9569,2753.1,2753.0,0.122]
[1763840808623,0.9569,2753.1,2753.0,3.75440101]
[1763840809939,0.9569,2753.1,2753.0,0.122]
[1763840810134,0.9569,2753.1,2753.0,3.75440101]
[1763840810727,0.9569,2753.1,2753.0,0.122]
[1763840811021,0.9569,2753.1,2753.0,3.75440101]
[1763840812934,0.9569,2753.1,2753.0,0.122]
[1763840813329,0.9569,2753.1,2752.9,3.6325145]
[1763840813528,0.4646,2753.0,2752.3,3.63321364]
[1763840813734,0.4646,2752.4,2752.3,3.63332485]
[1763840813961,0.4646,2752.4,2752.3,3.75532485]
[1763840814132,0.9569,2752.4,2752.3,3.63332485]
[1763840814313,0.9569,2752.4,2752.3,3.75532485]
[1763840815738,0.9569,2752.4,2752.3,0.122]
[1763840817840,0.9569,2752.4,2752.3,3.75532485]
[1763840818366,0.4646,2752.4,2752.3,3.75532485]
[1763840818550,0.4923,2752.6,2752.4,0.1]
[1763840819084,0.4646,2752.5,2752.4,0.1]
[1763840820440,0.002,2752.8,2752.4,7.47038568]
[1763840820670,0.4943,2752.8,2752.4,7.47038568]
[1763840826573,0.002,2752.8,2752.7,0.1]
[1763840826787,0.002,2752.8,2752.7,0.222]
[1763840827109,0.4973,2752.8,2752.7,0.222]
[1763840827260,0.002,2752.8,2752.7,0.326]
[1763840827458,0.9896,2752.8,2752.7,0.122]
[1763840830087,0.9896,2752.8,2752.7,3.75479689]
[1763840832694,0.9896,2752.8,2752.4,1.64174]
[1763840832908,0.9896,2752.8,2752.1,3.63350912]
[1763840832909,0.4953,2752.5,2752.1,3.63350912]
[1763840833081,0.4953,2752.0,2751.7,7.36815204]
[1763840833399,0.405504,2752.5,2751.9,0.1]
[1763840833620,0.4923,2752.6,2752.2,0.1]
[1763840833816,0.4923,2752.6,2752.3,0.122]
[1763840833966,0.4953,2752.4,2752.3,0.122]
[1763840834512,0.9876,2752.4,2752.2,0.1]
[1763840834801,0.4953,2752.3,2752.1,7.26817778]
[1763840835004,0.4953,2752.2,2752.1,3.63458889]
[1763840835511,0.9876,2752.2,2752.1,3.63458889]
[1763840835710,0.9876,2752.2,2752.1,3.75658889]
[1763840839773,0.9876,2752.2,2752.1,0.001]
[1763840846445,1.393104,2752.2,2752.1,0.001]
[1763840860337,0.900804,2752.2,2752.1,0.001]
[1763840860738,1.386004,2752.2,2752.1,0.001]
[1763840867692,0.405504,2752.2,2752.1,0.105]
[1763840867900,0.002,2752.8,2752.5,0.1]
[1763840868055,0.002,2752.8,2752.7,3.5176746]
[1763840868250,0.002,2752.8,2752.7,3.95635403]
[1763840868599,0.002,2752.8,2752.7,4.06035403]
[1763840869251,0.002,2752.8,2752.7,0.54267943]
[1763840869451,0.002,2752.8,2752.7,0.123]
[1763840869865,0.002,2752.8,2752.7,3.85979689]
[1763840870955,0.4684,2752.8,2752.7,0.123]
[1763840871155,0.002,2752.8,2752.7,3.75579689]
[1763840871367,0.002,2752.8,2752.7,3.85979689]
[1763840872485,0.002,2752.8,2752.7,0.123]
[1763840873586,0.002,2752.8,2752.7,3.75579689]
[1763840873891,0.002,2752.8,2752.7,3.85979689]
[1763840874088,0.002,2752.8,2752.7,0.227]
[1763840874287,0.002,2752.8,2752.7,4.24578973]
[1763840874589,0.002,2752.8,2752.7,0.50899284]
[1763840874791,0.002,2752.8,2752.7,4.14178973]
[1763840875788,0.002,2752.8,2752.7,0.50899284]
[1763840875789,0.4684,2752.8,2752.7,0.50899284]
[1763840876290,0.4684,2752.8,2752.7,4.14178973]
[1763840876588,0.002,2752.8,2752.7,4.14178973]
[1763840879293,0.002,2752.8,2752.7,4.24578973]
[1763840879894,0.002,2752.8,2752.7,4.44978973]
[1763840883083,0.002,2753.4,2753.0,0.104]
[1763840883292,0.002,2753.4,2753.3,3.33176453]
[1763840883491,0.002,2753.4,2753.3,3.68764098]
[1763840883698,0.002,2753.4,2753.3,3.79164098]
[1763840884207,0.002,2753.4,2753.3,4.50305915]
[1763840885682,0.002,2753.4,2753.3,8.13506438]
[1763840885884,0.002,2753.7,2753.3,15.39907484]
[1763840886201,0.002,2753.7,2753.6,0.204]
[1763840886499,0.002,2753.7,2753.6,0.431]
[1763840887709,0.002,2753.7,2753.6,4.06260952]
[1763840891800,0.002,2754.0,2753.9,0.1]
[1763840891977,0.002,2754.0,2753.9,3.33176453]
[1763840892175,0.002,2754.0,2753.9,3.77934098]
[1763840893184,0.002,2754.0,2753.9,7.41055489]
[1763840894824,0.002,2754.0,2753.9,6.61862626]
[1763840896427,0.002,2754.0,2753.9,6.63662626]
[1763840896966,0.002,2754.0,2753.9,7.42458754]
[1763840897316,0.002,2754.0,2753.9,7.52858754]
[1763840897922,0.002,2754.0,2753.9,9.17032754]
[1763840900080,0.002,2754.0,2753.9,9.04832754]
[1763840900377,0.002,2754.0,2753.9,9.17032754]
[1763840901034,0.002,2754.0,2753.9,9.04832754]
[1763840901229,0.002,2754.0,2753.9,9.17032754]
[1763840901413,0.002,2754.0,2753.9,9.06632754]
[1763840902642,0.002,2754.0,2753.9,8.84432754]
[1763840902965,0.9875,2754.0,2753.9,8.96232754]
[1763840903670,0.4999,2754.0,2753.9,5.73853036]
[1763840903974,0.9875,2754.0,2753.9,3.63121391]
[1763840904297,0.9875,2754.0,2753.9,3.75321391]
[1763840904476,0.9875,2754.0,2753.9,3.85321391]
[1763840905883,0.9875,2754.0,2753.9,3.73121391]
[1763840906086,0.9875,2754.0,2753.9,3.75321391]
[1763840906468,0.002,2754.0,2753.9,3.85321391]
[1763840906690,0.4999,2754.0,2753.9,3.85321391]
[1763840907587,0.002,2754.0,2753.9,7.08101109]
[1763840908154,0.002,2754.0,2753.9,7.18501109]
[1763840909867,0.002,2754.0,2753.9,8.82675109]
[1763840911269,0.002,2754.0,2753.9,8.72275109]
[1763840912070,0.4999,2754.0,2753.9,8.49675109]
[1763840912276,0.4999,2754.0,2753.9,8.61875109]
[1763840912569,0.002,2754.0,2753.9,8.61875109]
[1763840912776,0.002,2754.0,2753.9,8.72275109]
[1763840913492,0.002,2754.0,2753.9,8.82675109]
[1763840916304,0.002,2754.0,2753.9,8.72275109]
[1763840917796,0.002,2754.0,2753.9,8.60075109]
[1763840918018,0.002,2754.0,2753.9,8.49675109]
[1763840918163,0.4661,2754.0,2753.9,8.61875109]
[1763840918803,0.4661,2754.0,2753.9,7.83141527]
[1763840919103,0.002,2754.0,2753.9,7.93541527]
[1763840922059,0.9647,2754.0,2753.9,1.64174]
[1763840922220,0.9647,2754.0,2753.9,1.76374]
[1763840922956,0.9647,2754.0,2753.9,5.39495391]
[1763840927685,0.9647,2754.0,2753.6,3.63256673]
[1763840927686,0.9647,2754.0,2753.6,0.001]
[1763840927849,0.4781,2753.9,2753.8,0.122]
[1763840928386,0.405504,2753.8,2753.6,0.123]
[1763840928596,0.4846,2753.7,2753.6,0.123]
[1763840928764,0.9627,2753.7,2753.6,0.123]
[1763840929581,0.9627,2753.7,2753.6,0.001]
[1763840932852,1.368204,2753.7,2753.6,0.001]
[1763840933051,1.5641548,2753.7,2753.6,0.001]
[1763840934194,1.1586508,2753.7,2753.6,0.001]
[1763840934349,0.9627,2753.7,2753.6,0.001]
[1763840940018,0.4846,2753.7,2753.6,0.001]
[1763840940219,0.9627,2753.7,2753.6,0.001]
[1763840943497,0.1858,2753.9,2753.6,0.001]
[1763840943698,0.4846,2753.7,2753.6,0.001]
[1763840944187,0.9627,2753.7,2753.6,0.001]
[1763840944788,0.9627,2753.7,2753.6,0.123]
[1763840944989,0.9627,2753.7,2753.6,3.75460952]
[1763840945189,0.9627,2753.7,2753.6,0.123]
[1763840945624,0.9627,2753.7,2753.6,3.75460952]
[1763840946911,0.6487,2753.9,2753.6,3.75460952]
[1763840947420,0.4875,2753.7,2753.6,3.75460952]
[1763840948022,0.9504,2753.7,2753.6,3.75460952]
[1763840950101,0.9504,2753.7,2753.6,0.123]
[1763840951137,0.9504,2753.7,2753.6,0.001]
[1763840951308,0.9504,2753.7,2753.6,0.123]
[1763840951743,0.9504,2753.7,2753.6,0.001]
[1763840952039,0.9504,2753.7,2753.6,0.123]
[1763840952539,0.9504,2753.7,2753.6,0.001]
[1763840955252,1.355904,2753.7,2753.6,0.001]
[1763840955549,1.355904,2753.7,2753.6,0.123]
[1763840956334,1.355904,2753.7,2753.6,0.001]
[1763840956530,1.355904,2753.7,2753.6,0.123]
[1763840956736,1.355904,2753.7,2753.6,0.001]
[1763840956935,1.357904,2753.7,2753.6,0.001]
[1763840959774,0.4895,2753.7,2753.6,0.001]
[1763840959926,0.9656,2753.7,2753.6,0.001]
[1763840973267,0.002,2753.7,2753.6,0.105]
[1763840974443,0.002,2753.7,2753.6,3.73660952]
[1763840977977,0.002,2753.7,2753.6,3.94060952]
[1763840979284,0.002,2753.7,2753.6,3.83660952]
[1763840979778,0.002,2753.7,2753.6,3.94060952]
[1763840981585,0.002,2753.7,2753.6,3.83660952]
[1763840981976,0.002,2753.7,2753.6,3.85860952]
[1763840983988,0.9725,2753.7,2753.6,3.63260952]
[1763840984185,0.9725,2753.7,2753.6,3.75460952]
[1763840984488,0.4784,2753.7,2753.6,3.75460952]
[1763840988087,0.9725,2753.7,2753.6,3.75460952]
[1763840990210,0.002,2753.7,2753.6,3.85860952]
[1763840990368,0.002,2753.7,2753.6,4.06260952]
[1763840990973,0.14551619,2754.1,2753.8,0.1]
[1763840991177,0.63961619,2754.1,2753.9,0.122]
[1763840991676,0.4764,2754.0,2753.9,0.122]
[1763840992575,0.63961619,2754.1,2754.0,3.63108206]
[1763840992900,0.4941,2754.6,2754.0,3.83798206]
[1763840993095,0.64161619,2754.3,2754.1,2.50498491]
[1763840993279,0.64161619,2754.3,2754.2,0.122]
[1763840993713,1.61211619,2754.3,2754.2,0.122]
[1763840994308,0.4784,2754.3,2754.2,0.122]
[1763840994494,0.4784,2754.3,2754.2,0.4289]
[1763840994495,0.002,2754.3,2754.2,0.4289]
[1763840994695,0.002,2754.3,2754.2,4.26661838]
[1763840995910,0.002,2754.3,2754.2,4.05971838]
[1763840997980,0.002,2754.3,2754.2,4.26661838]
[1763840998180,0.002,2754.3,2754.2,4.76071838]
[1763840998883,0.002,2754.3,2754.2,9.43103818]
[1763841000207,0.4941,2755.1,2754.2,20.22349332]
[1763841000409,0.4941,2755.5,2755.1,0.1]
[1763841000584,0.9882,2755.7,2755.4,2.3351599]
[1763841000938,0.899604,2755.7,2755.6,2.3351599]
[1763841001085,0.9705,2755.7,2755.6,2.3351599]
[1763841001483,0.9705,2755.7,2755.6,2.4571599]
[1763841002081,0.9705,2755.7,2755.6,0.122]
[1763841002289,1.376004,2755.7,2755.6,0.122]
[1763841004604,2.62037313,2755.7,2755.6,0.122]
[1763841004913,2.62037313,2755.7,2755.6,2.4571599]
[1763841005319,0.4764,2755.7,2755.6,6.18613362]
[1763841005616,0.4941,2755.9,2755.6,6.18613362]
[1763841005782,0.4941,2755.9,2755.8,2.3351599]
[1763841006320,0.9812,2755.9,2755.8,2.3351599]
[1763841006707,0.9832,2755.9,2755.8,2.3351599]
[1763841010406,0.9832,2755.9,2755.8,2.4571599]
[1763841010810,0.9832,2755.9,2755.8,6.08587025]
[1763841011926,0.9832,2755.9,2755.8,2.4571599]
[1763841012301,0.9832,2755.9,2755.8,6.08587025]
[1763841012699,0.002,2755.9,2755.8,8.42103015]
[1763841012921,0.002,2755.9,2755.8,8.72793015]
[1763841013281,0.6819,2755.9,2755.6,0.9832]
[1763841013566,0.6613,2755.9,2755.7,2.3351599]
[1763841013922,0.4871,2755.8,2755.7,2.3351599]
[1763841014130,0.002,2755.9,2755.7,2.5420599]
[1763841014565,0.002,2755.9,2755.7,2.3351599]
[1763841014740,0.4685,2755.9,2755.7,2.3351599]
[1763841015165,0.4685,2755.9,2755.8,0.122]
[1763841016164,0.9556,2755.9,2755.7,0.1194]
[1763841016364,0.9556,2755.9,2755.5,2.3351599]
[1763841016365,0.4871,2755.8,2755.5,2.3351599]
[1763841016569,0.4871,2755.6,2755.5,2.3351599]
[1763841016869,0.4871,2755.6,2755.5,2.4571599]
[1763841017063,0.9536,2755.6,2755.5,2.4571599]
[1763841017428,0.9536,2755.6,2755.3,2.3351599]
[1763841017636,0.4871,2755.4,2755.1,2.3351599]
[1763841017946,0.4665,2755.5,2755.1,2.3351599]
[1763841017947,0.4871,2755.2,2755.1,5.96478166]
[1763841018670,0.4871,2755.2,2755.1,6.08678166]
[1763841019771,0.9536,2755.2,2755.1,0.122]
[1763841019939,0.405504,2755.1,2754.8,2.3351599]
[1763841020140,0.872004,2755.1,2755.0,0.122]
[1763841020587,1.551904,2755.1,2755.0,0.122]
[1763841020727,2.72318846,2755.1,2754.4,2.3351599]
[1763841020931,0.4871,2754.9,2754.5,0.122]
[1763841021155,0.4871,2754.6,2754.5,0.122]
[1763841021366,0.4665,2754.8,2754.6,2.3351599]
[1763841021571,0.4871,2754.7,2754.6,2.3351599]
[1763841022063,0.9536,2754.7,2754.6,2.3351599]
[1763841022364,0.45709182,2755.1,2754.6,2.6420599]
[1763841022365,0.598304,2755.1,2754.6,2.6420599]
[1763841022575,0.4665,2755.0,2754.9,2.3351599]
[1763841022935,0.9536,2755.0,2754.9,2.4571599]
[1763841024272,0.4871,2755.0,2754.9,2.4571599]
[1763841024641,0.1928,2755.1,2754.9,6.08704068]
[1763841025577,0.1928,2755.1,2754.9,2.4571599]
[1763841025873,0.872004,2755.4,2754.9,6.08704043]
[1763841026035,0.4665,2755.3,2755.1,2.3351599]
[1763841026231,0.4871,2755.2,2755.1,2.3351599]
[1763841026834,0.9536,2755.2,2755.1,2.3351599]
[1763841027565,0.9536,2755.2,2754.9,0.122]
[1763841027737,0.4871,2755.0,2754.9,0.122]
[1763841028295,0.4871,2755.0,2754.9,2.4571599]
[1763841028801,1.49641507,2755.4,2754.9,2.6640599]
[1763841029147,1.49641507,2755.4,2755.1,2.3351599]
[1763841029352,0.4665,2755.3,2755.1,2.3351599]
[1763841029602,0.4871,2755.2,2754.9,2.4571599]
[1763841029897,0.4871,2755.0,2754.9,2.4571599]
[1763841030389,0.4871,2755.0,2754.9,2.3351599]
[1763841030592,0.9536,2755.0,2754.9,2.4571599]
[1763841031794,0.405504,2755.4,2754.9,2.4571599]
[1763841031795,0.4665,2755.3,2754.9,2.4571599]
[1763841032039,1.55737933,2755.3,2754.9,2.4571599]
[1763841032351,0.4665,2755.2,2754.9,2.4571599]
[1763841034600,0.4665,2755.7,2755.1,2.7460599]
[1763841034778,0.4665,2755.7,2755.3,2.3351599]
[1763841034779,0.872004,2755.6,2755.3,2.3351599]
[1763841035105,0.4665,2755.6,2755.3,2.3351599]
[1763841035398,0.405504,2755.7,2755.5,2.3351599]
[1763841035603,0.4665,2755.8,2755.5,2.4571599]
[1763841035798,0.4871,2755.6,2755.5,2.4571599]
[1763841036787,0.4794,2755.8,2755.5,2.4571599]
[1763841038803,0.407504,2755.9,2755.5,2.4571599]
[1763841039002,0.471,2755.8,2755.5,2.4571599]
[1763841039197,0.4743,2755.6,2755.5,2.4571599]
[1763841039716,0.9453,2755.6,2755.5,2.4571599]
[1763841040817,0.4743,2755.6,2755.5,2.4571599]
[1763841041024,0.4743,2755.6,2755.5,2.4581599]
[1763841042293,0.002,2755.7,2755.5,6.29416532]
[1763841042483,0.002,2755.7,2755.6,0.2069]
[1763841043525,0.002,2755.7,2755.6,3.83587372]
[1763841044316,0.002,2755.7,2755.6,0.2069]
[1763841044918,0.002,2755.7,2755.5,6.08721903]
[1763841046118,0.002,2755.7,2755.6,0.2069]
[1763841046316,0.002,2755.7,2755.6,0.5138]
[1763841046709,0.002,2755.7,2755.6,0.3069]
[1763841047229,0.002,2755.7,2755.6,3.93587372]
[1763841047392,0.002,2755.7,2755.6,0.3069]
[1763841047595,0.9473,2755.7,2755.6,0.122]
[1763841051039,0.9473,2755.7,2755.5,2.3361599]
[1763841051234,0.9453,2755.6,2755.5,2.3361599]
[1763841051407,0.9453,2755.6,2755.5,2.4581599]
[1763841051608,0.9453,2755.6,2755.5,0.001]
[1763841051803,0.9453,2755.6,2755.5,0.123]
[1763841052208,1.350804,2755.6,2755.5,0.001]
[1763841052417,1.350804,2755.6,2755.5,0.123]
[1763841054644,0.4743,2755.6,2755.5,2.4581599]
[1763841055339,0.002,2755.7,2755.5,2.4581599]
[1763841057458,0.002,2755.7,2755.5,6.08719322]
[1763841057947,0.002,2755.7,2755.5,2.4581599]
[1763841058307,0.473,2755.7,2755.5,2.4581599]
[1763841058745,0.473,2755.7,2755.5,2.3361599]
[1763841058746,0.4743,2755.6,2755.5,2.3361599]
[1763841058941,0.4743,2755.6,2755.5,2.4581599]
[1763841059121,0.9453,2755.6,2755.5,2.4581599]
[1763841060419,0.9453,2755.6,2755.5,0.123]
[1763841060846,0.4743,2755.6,2755.5,0.123]
[1763841061036,0.9453,2755.6,2755.5,0.123]
[1763841063450,1.350804,2755.6,2755.5,0.001]
[1763841064553,0.002,2755.7,2755.5,0.2079]
[1763841065166,0.4743,2755.6,2755.5,0.001]
[1763841065451,0.9453,2755.6,2755.5,0.001]
[1763841065661,1.350804,2755.6,2755.5,0.001]
[1763841070162,0.879804,2755.6,2755.5,0.001]
[1763841070375,1.366504,2755.6,2755.5,0.001]
[1763841073274,0.879804,2755.6,2755.5,0.001]
[1763841075473,1.366504,2755.6,2755.5,0.001]
[1763841080689,1.70676554,2755.6,2755.5,0.001]
[1763841080902,1.366504,2755.6,2755.5,0.001]
[1763841081385,1.70676931,2755.6,2755.5,0.001]
[1763841086693,1.366504,2755.6,2755.5,0.001]
[1763841087986,0.879804,2755.6,2755.5,0.001]
[1763841088596,1.366504,2755.6,2755.5,0.001]
[1763841090974,0.405504,2755.6,2755.5,0.2079]
[1763841094324,1.371204,2755.6,2755.5,0.001]
[1763841094510,1.71157804,2755.6,2755.5,0.001]
[1763841096826,1.22487804,2755.6,2755.5,0.001]
[1763841097009,0.405504,2755.6,2755.5,0.2079]
[1763841097214,0.880804,2755.6,2755.5,0.001]
[1763841097847,1.351704,2755.6,2755.5,0.001]
[1763841101534,0.405504,2755.6,2755.5,0.2079]
[1763841107239,0.002,2755.7,2755.5,0.2079]